bitfinex/quotes_ETHUSD_20250123
["timestamp","ask_amount","ask_price","bid_price","bid_amount"]
[1737650424596,3.05287,3275.6,3275.0,1.637]
[1737650424597,3.0,3275.9,3275.1,3.05331]
[1737650424814,0.60461182,3276.0,3275.0,2.293]
[1737650424815,3.05334,3275.1,3275.0,1.637]
[1737650424968,3.05334,3275.1,3273.9,3.0]
[1737650424969,3.05368,3274.8,3274.2,4.69111]
[1737650425169,3.05368,3274.8,3274.2,1.637]
[1737650425358,3.05345,3275.0,3274.3,0.55]
[1737650425554,3.05377,3274.7,3274.3,0.55]
[1737650426703,3.0539,3274.5,3274.4,0.28156821]
[1737650428063,3.05418,3274.2,3274.1,0.28156821]
[1737650428658,4.62981,3274.6,3274.2,0.55]
[1737650428860,3.05381,3274.6,3274.2,0.55]
[1737650429500,3.0,3274.7,3274.2,0.55]
[1737650429683,3.0539,3274.6,3274.2,0.55]
[1737650429997,3.054,3274.4,3274.2,0.55]
[1737650430196,3.054,3274.4,3274.0,0.55]
[1737650430394,3.054,3274.4,3274.0,0.75665]
[1737650431760,0.60009341,3274.8,3274.2,0.55]
[1737650432002,3.05346,3275.0,3274.5,0.55]
[1737650432199,0.61659774,3275.1,3274.7,0.55]
[1737650432398,0.61659774,3275.1,3274.6,1.5735]
[1737650432399,3.05328,3275.2,3274.9,0.55]
[1737650432697,3.05336,3275.1,3274.7,0.55]
[1737650433403,3.05358,3274.9,3274.7,0.55]
[1737650434202,4.6955,3274.8,3274.0,8.97665]
[1737650434365,3.05343,3275.0,3274.1,1.652]
[1737650434708,3.05343,3275.0,3274.5,0.55]
[1737650434864,0.61812473,3275.5,3274.5,0.55]
[1737650435060,3.05369,3274.8,3274.5,0.55]
[1737650435312,3.05376,3274.7,3274.6,0.0639049]
[1737650435811,4.71359,3274.8,3274.1,0.28071225]
[1737650435812,3.05407,3274.4,3274.1,0.28071225]
[1737650436105,3.05371,3274.7,3274.6,0.06178001]
[1737650436300,3.05397,3274.5,3274.0,0.55]
[1737650436509,3.05436,3274.0,3273.9,1.539]
[1737650436670,1.6599,3274.8,3273.5,2.2683]
[1737650437002,3.05448,3273.9,3273.5,1.6123]
[1737650437576,1.6405,3274.2,3273.1,1.6475]
[1737650437901,3.05501,3273.4,3273.1,1.6475]
[1737650438089,3.05501,3273.4,3273.2,0.55]
[1737650438408,1.6405,3273.5,3272.8,2.198]
[1737650438564,3.05521,3273.1,3272.8,2.198]
[1737650439432,3.05509,3273.3,3272.8,2.198]
[1737650439596,3.05525,3273.1,3272.8,2.198]
[1737650439800,3.05509,3273.3,3272.8,2.198]
[1737650440108,3.05513,3273.2,3272.8,2.198]
[1737650440303,3.05513,3273.2,3272.9,0.55]
[1737650440833,3.05539,3272.9,3272.8,2.198]
[1737650441028,3.05539,3272.9,3272.8,2.748]
[1737650441232,3.05539,3272.9,3272.8,2.198]
[1737650441831,3.05505,3273.3,3272.9,0.55]
[1737650442034,3.05509,3273.3,3272.9,0.55]
[1737650442237,3.05512,3273.2,3272.9,0.55]
[1737650442537,6.11032,3273.2,3272.9,0.55]
[1737650442716,3.05512,3273.2,3272.9,0.55]
[1737650443238,3.05517,3273.2,3272.9,0.55]
[1737650444009,3.0553,3273.0,3272.8,2.198]
[1737650444336,3.05556,3272.8,3272.3,0.55]
[1737650444699,3.05561,3272.7,3272.3,0.55]
[1737650445040,3.05577,3272.5,3272.3,0.55]
[1737650445236,3.05573,3272.6,3272.3,0.55]
[1737650445537,3.05586,3272.4,3272.0,0.55]
[1737650446037,3.0555,3272.8,3272.0,4.124439]
[1737650446225,3.0555,3272.8,3272.3,0.55]
[1737650446397,3.05551,3272.8,3272.3,0.55]
[1737650446594,3.05551,3272.8,3272.3,3.60595]
[1737650446837,6.11108,3272.8,3272.3,0.55]
[1737650447039,3.05551,3272.8,3272.2,3.05603]
[1737650447338,3.05531,3273.0,3272.3,3.05589]
[1737650447638,3.05531,3273.0,3272.4,3.05579]
[1737650448042,3.05551,3272.8,3272.2,3.8846559]
[1737650448335,6.11068,3273.0,3272.3,3.05593]
[1737650448534,6.11068,3273.0,3272.2,3.05603]
[1737650448535,3.05531,3273.0,3272.4,3.05584]
[1737650448940,3.05531,3273.0,3272.5,0.55]
[1737650449125,3.05613,3272.2,3271.7,1.6454]
[1737650449327,3.05612,3272.2,3271.7,1.6454]
[1737650449630,3.05612,3272.2,3271.8,0.55]
[1737650450300,3.05623,3272.0,3271.9,0.06030213]
[1737650450742,3.05623,3272.0,3271.7,1.6454]
[1737650450937,3.05612,3272.2,3271.9,0.06030213]
[1737650451242,3.05614,3272.1,3272.0,0.06027728]
[1737650451404,3.05599,3272.3,3271.8,0.55]
[1737650451604,3.05599,3272.3,3271.9,0.06030213]
[1737650452142,3.0561,3272.2,3271.9,0.06030213]
[1737650452345,3.05615,3272.1,3271.9,0.06030213]
[1737650452652,3.05639,3271.9,3271.5,0.55]
[1737650452939,3.05649,3271.8,3271.4,1.5211]
[1737650453110,3.05663,3271.6,3271.2,1.5359]
[1737650453519,3.05715,3271.1,3270.7,3.7349]
[1737650453741,3.67116478,3272.6,3270.7,3.7349]
[1737650453742,3.05666,3271.6,3270.9,3.05717]
[1737650453910,3.05666,3271.6,3271.1,3.05703]
[1737650454552,3.05682,3271.4,3271.0,0.55]
[1737650454858,3.05682,3271.4,3270.8,3.05734]
[1737650455211,1.6256,3271.9,3270.8,0.55]
[1737650455212,3.05688,3271.3,3270.8,0.55]
[1737650455458,3.057,3271.2,3270.8,0.55]
[1737650455613,3.05681,3271.4,3270.8,3.60733]
[1737650456315,3.05689,3271.3,3270.8,0.55]
[1737650456715,3.05689,3271.3,3270.8,3.60734]
[1737650457045,6.11349,3271.5,3270.8,3.60734]
[1737650457226,3.668059,3271.5,3270.8,0.55]
[1737650457422,1.6256,3271.9,3270.7,3.7349]
[1737650457648,3.05724,3271.0,3270.7,2.199]
[1737650458005,3.05689,3271.3,3270.8,3.05735]
[1737650458250,3.05699,3271.2,3270.7,2.199]
[1737650458439,3.0571,3271.1,3270.7,2.199]
[1737650459255,1.5695,3271.0,3269.6,9.55842]
[1737650459410,3.05806,3270.1,3269.6,6.5]
[1737650459838,3.05794,3270.2,3269.6,6.5]
[1737650460048,4.72048,3270.7,3269.9,0.55]
[1737650460355,3.05768,3270.5,3269.9,0.55]
[1737650460526,3.05783,3270.3,3269.9,0.55]
[1737650460730,3.05768,3270.5,3269.9,0.55]
[1737650460939,3.05746,3270.7,3269.9,1.066915]
[1737650461117,3.05729,3270.9,3270.2,3.05784]
[1737650461318,1.663,3271.0,3270.4,3.05769]
[1737650461534,6.05708,3271.1,3270.5,0.55]
[1737650461752,3.05718,3271.0,3270.5,0.55]
[1737650461954,3.0,3271.1,3270.5,0.55]
[1737650462248,3.05705,3271.2,3270.7,0.55]
[1737650462451,3.05691,3271.3,3270.9,0.55]
[1737650463258,3.05672,3271.5,3270.9,0.55]
[1737650463475,1.5784,3271.7,3270.9,0.55]
[1737650463476,3.05654,3271.7,3271.2,0.55]
[1737650463681,3.05666,3271.6,3271.2,0.55]
[1737650463957,3.05672,3271.5,3271.0,0.55]
[1737650464258,3.05714,3271.1,3270.9,0.55]
[1737650464460,3.05691,3271.3,3270.9,0.55]
[1737650465067,3.05716,3271.0,3270.5,1.5053]
[1737650465282,3.0571,3271.1,3271.0,0.05344152]
[1737650465557,3.0571,3271.1,3270.6,0.55]
[1737650465723,0.61132354,3271.8,3271.3,0.55]
[1737650465929,3.66781354,3271.8,3271.3,0.55]
[1737650466086,1.6517,3271.9,3271.4,0.05351098]
[1737650466087,3.05654,3271.7,3271.4,0.05351098]
[1737650466268,3.0567,3271.5,3271.4,0.05351098]
[1737650466463,3.0567,3271.5,3271.3,0.55]
[1737650466767,3.05654,3271.7,3271.4,0.05356489]
[1737650466986,2.25262972,3271.9,3271.4,0.05356489]
[1737650467181,3.05653,3271.7,3271.2,0.55]
[1737650467415,3.05653,3271.7,3271.1,3.05698]
[1737650467698,3.05662,3271.6,3271.3,0.55]
[1737650467899,3.05679,3271.4,3271.3,0.55]
[1737650468211,6.05658,3271.7,3271.4,0.05364619]
[1737650468371,3.0566,3271.6,3271.3,0.05367105]
[1737650468704,3.0567,3271.5,3271.4,0.05364619]
[1737650468916,3.05698,3271.2,3270.8,1.6344]
[1737650469222,3.05698,3271.2,3270.7,0.28081745]
[1737650469223,7.6511,3271.5,3271.4,0.05364619]
[1737650469401,3.05754,3270.6,3270.4,1.6469]
[1737650469713,3.05749,3270.7,3270.4,1.6469]
[1737650469714,3.05749,3270.7,3270.5,0.05387444]
[1737650470307,3.05729,3270.9,3270.6,0.55]
[1737650470563,3.0571,3271.1,3270.6,0.60419118]
[1737650470693,3.05699,3271.2,3270.6,3.66167118]
[1737650471009,3.05687,3271.4,3271.0,0.55]
[1737650471175,0.60092972,3271.9,3271.0,0.55]
[1737650471176,3.05658,3271.7,3271.0,0.55]
[1737650471520,0.60092972,3271.9,3271.2,0.55]
[1737650471673,3.05659,3271.7,3271.2,0.55]
[1737650471877,3.05659,3271.7,3271.4,0.55]
[1737650472196,3.05659,3271.7,3271.3,0.05399415]
[1737650472197,3.05679,3271.4,3271.3,0.05399415]
[1737650472396,3.05679,3271.4,3270.9,1.5051]
[1737650472612,3.05674,3271.5,3271.0,0.55]
[1737650472776,0.60092972,3271.9,3271.2,0.55]
[1737650472976,3.05648,3271.8,3271.2,3.60695]
[1737650473189,3.05648,3271.8,3271.4,0.55]
[1737650473628,3.05628,3272.0,3271.3,0.55]
[1737650473922,3.05614,3272.1,3271.5,0.55]
[1737650474126,3.05633,3271.9,3271.4,0.55]
[1737650474308,3.05614,3272.1,3271.4,0.55]
[1737650474509,3.05614,3272.1,3271.6,0.55]
[1737650474714,3.05633,3271.9,3271.5,0.360681]
[1737650474909,3.05649,3271.8,3271.4,0.55]
[1737650475110,3.05649,3271.8,3271.3,0.55]
[1737650475522,1.5607,3272.2,3271.3,0.55]
[1737650475689,3.05666,3271.6,3271.3,0.55]
[1737650475890,1.5607,3272.2,3271.3,0.55]
[1737650476105,3.05648,3271.8,3271.3,0.55]
[1737650476310,3.05654,3271.7,3271.2,0.55]
[1737650476507,3.05666,3271.6,3271.2,0.55]
[1737650476848,3.05687,3271.4,3271.2,0.55]
[1737650477026,3.05698,3271.2,3270.7,3.05742]
[1737650477229,3.05698,3271.2,3270.8,1.5961]
[1737650477407,3.05698,3271.2,3270.9,0.55]
[1737650477807,3.05684,3271.4,3270.9,1.00098227]
[1737650478002,3.0569,3271.3,3270.9,1.00098227]
[1737650478326,3.05709,3271.1,3270.9,1.00098227]
[1737650478757,1.6134,3272.7,3270.9,1.2606905]
[1737650479028,3.05606,3272.2,3271.5,3.05662]
[1737650479196,3.05644,3271.8,3271.5,0.55]
[1737650479811,3.05646,3271.8,3271.0,4.56705]
[1737650480017,3.05658,3271.7,3271.1,3.05701]
[1737650480198,3.05663,3271.6,3271.2,0.55]
[1737650480512,6.11296,3271.8,3271.2,0.60359937]
[1737650480808,6.11296,3271.8,3271.2,1.05560431]
[1737650480809,3.05652,3271.7,3271.2,1.05560431]
[1737650481328,3.05662,3271.6,3271.2,1.05560431]
[1737650481494,3.05624,3272.0,3271.3,3.05681]
[1737650481697,3.05624,3272.0,3271.4,0.35624143]
[1737650482035,3.05624,3272.0,3271.5,5.11658]
[1737650482461,3.05595,3272.3,3271.7,0.55]
[1737650482730,1.631,3272.7,3272.1,1.6432]
[1737650482938,3.05536,3273.0,3272.3,3.05591]
[1737650483232,0.99049948,3273.4,3272.9,0.55]
[1737650483233,3.05499,3273.4,3272.9,0.55]
[1737650483598,3.05474,3273.6,3273.1,0.55]
[1737650483803,3.05465,3273.7,3273.1,3.60518]
[1737650484001,3.05484,3273.5,3273.3,0.55]
[1737650484328,3.05502,3273.3,3272.8,1.6432]
[1737650484532,0.62277051,3273.8,3272.9,0.55]
[1737650484724,3.05456,3273.8,3273.2,0.55]
[1737650486036,3.05471,3273.7,3273.2,0.55]
[1737650486239,3.05456,3273.8,3273.2,0.55]
[1737650486534,3.05438,3274.0,3273.4,0.55]
[1737650486853,3.05433,3274.1,3273.6,0.55]
[1737650487139,3.6800883,3274.3,3273.6,0.55]
[1737650487438,3.05419,3274.2,3273.6,3.6047]
[1737650487634,0.6260083,3274.3,3273.6,1.0678]
[1737650487858,3.05379,3274.7,3274.1,2.0687]
[1737650488063,3.6714396,3274.8,3274.1,2.0687]
[1737650488206,3.6714396,3274.8,3273.8,1.5187]
[1737650488207,3.05435,3274.1,3273.8,1.5187]
[1737650488403,3.0,3274.7,3273.1,3.05518]
[1737650488404,3.05462,3273.8,3273.3,1.5187]
[1737650488726,3.0543,3274.1,3273.4,0.55]
[1737650488924,1.6057,3274.4,3273.4,0.8580213]
[1737650489150,3.05456,3273.8,3273.4,0.55]
[1737650489459,3.05446,3273.9,3273.4,0.55]
[1737650490265,1.6057,3274.4,3273.9,3.05441]
[1737650490463,3.65013786,3274.6,3273.9,3.05441]
[1737650490464,3.05352,3274.9,3274.2,2.0731]
[1737650490654,1.636,3275.2,3274.2,2.0731]
[1737650490807,3.05352,3274.9,3274.2,2.0731]
[1737650491129,3.05427,3274.1,3273.6,1.5964]
[1737650491643,3.05427,3274.1,3273.7,0.55]
[1737650492441,3.05439,3274.0,3273.7,0.55]
[1737650492852,1.5431,3273.9,3272.8,1.5745]
[1737650493056,3.05522,3273.1,3272.8,1.5745]
[1737650493266,3.05464,3273.7,3272.3,1.5745]
[1737650493267,1.5431,3273.2,3272.3,1.5745]
[1737650493415,3.05555,3272.8,3272.3,1.5745]
[1737650493761,3.05532,3273.0,3272.4,0.55]
[1737650493921,3.05577,3272.5,3272.3,1.5745]
[1737650494444,3.05586,3272.4,3272.3,1.5745]
[1737650494641,3.05627,3272.0,3271.7,1.5183]
[1737650494842,3.05588,3272.4,3271.7,1.5183]
[1737650495042,3.05606,3272.2,3271.7,1.5183]
[1737650495242,3.0564,3271.9,3271.7,1.5183]
[1737650495444,3.0564,3271.9,3271.8,0.04317825]
[1737650495822,3.0564,3271.9,3271.4,0.55]
[1737650495823,3.05658,3271.7,3271.4,0.55]
[1737650496246,3.05658,3271.7,3271.6,0.55]
[1737650496443,3.0566,3271.6,3271.5,0.04193524]
[1737650496644,1.5915,3272.1,3271.3,1.5928]
[1737650496844,3.05661,3271.6,3271.4,0.55]
[1737650497050,3.05661,3271.6,3271.1,0.65]
[1737650497051,3.05682,3271.4,3271.1,0.65]
[1737650497245,3.05707,3271.1,3271.0,1.5566]
[1737650497433,3.05716,3271.1,3270.6,1.5566]
[1737650497638,1.537,3271.3,3270.6,1.5566]
[1737650497835,1.537,3271.3,3270.2,3.05786]
[1737650497836,0.1537,3271.2,3270.1,9.558]
[1737650498041,3.05782,3270.3,3270.0,1.5077]
[1737650498249,3.05791,3270.3,3270.0,1.5077]
[1737650498454,3.05801,3270.1,3270.0,1.5077]
[1737650499858,3.05791,3270.3,3270.0,1.5077]
[1737650500356,3.05793,3270.2,3270.0,1.5077]
[1737650500751,3.05747,3270.7,3270.1,0.55]
[1737650500929,3.05727,3270.9,3270.1,0.55]
[1737650501258,3.0,3270.8,3270.3,0.55]
[1737650501559,3.05755,3270.6,3270.1,0.55]
[1737650501758,3.0,3270.8,3270.1,1.061576]
[1737650501961,3.05739,3270.8,3270.1,1.061576]
[1737650502123,3.05739,3270.8,3270.7,35.55]
[1737650502330,3.05727,3270.9,3270.7,35.55]
[1737650502661,3.05727,3270.9,3270.7,0.55]
[1737650503059,3.05735,3270.8,3270.7,0.55]
[1737650503263,3.05735,3270.8,3270.0,1.5077]
[1737650503264,3.05797,3270.2,3270.0,1.5077]
[1737650503422,3.05775,3270.4,3269.7,6.5]
[1737650503423,3.05775,3270.4,3269.7,8.1618]
[1737650503628,3.05783,3270.3,3270.1,0.03900263]
[1737650503842,3.05783,3270.3,3269.8,0.55]
[1737650504038,3.05783,3270.3,3270.2,35.03897776]
[1737650504237,3.05783,3270.3,3270.2,35.0]
[1737650504441,3.05783,3270.3,3270.2,35.03897776]
[1737650504733,3.05764,3270.5,3270.3,0.55]
[1737650504936,3.05764,3270.5,3270.4,0.038928]
[1737650505129,3.38317453,3270.5,3270.4,0.038928]
[1737650505461,3.05808,3270.1,3269.7,1.6618]
[1737650505967,3.05808,3270.1,3269.8,0.03905021]
[1737650506180,0.32553453,3270.5,3269.2,2.2]
[1737650506181,3.05875,3269.3,3269.2,2.2]
[1737650506464,3.0,3269.7,3268.6,6.5]
[1737650506763,4.6084,3269.9,3269.0,3.05903]
[1737650506972,1.5502,3269.9,3268.8,1.5897]
[1737650507172,3.05877,3269.3,3269.1,35.0]
[1737650507478,3.05807,3270.1,3269.2,0.55]
[1737650507479,3.0586,3269.5,3269.2,0.55]
[1737650507639,0.59768033,3270.0,3269.2,0.55]
[1737650507840,3.05836,3269.8,3269.2,3.65202562]
[1737650508037,3.05813,3270.0,3269.3,0.55]
[1737650508368,3.05775,3270.4,3270.0,0.55]
[1737650508534,3.05785,3270.3,3270.0,0.55]
[1737650508869,3.05785,3270.3,3269.7,0.55]
[1737650509072,3.05765,3270.5,3269.7,3.60836]
[1737650509276,3.0,3270.9,3270.2,0.55]
[1737650509277,0.60654799,3270.9,3270.2,0.55]
[1737650509569,3.05729,3270.9,3270.4,0.55]
[1737650510099,3.05741,3270.8,3270.1,0.55]
[1737650510237,3.05764,3270.5,3269.9,4.69165]
[1737650510440,0.62006353,3271.1,3270.2,0.03818265]
[1737650510700,0.62006353,3271.1,3270.1,0.55]
[1737650510701,3.05752,3270.7,3270.4,0.55]
[1737650511241,3.05752,3270.7,3270.6,0.55]
[1737650511542,3.05726,3270.9,3270.6,0.58802254]
[1737650511752,3.05732,3270.9,3270.6,0.58802254]
[1737650512251,3.057,3271.2,3270.6,0.58802254]
[1737650512572,3.05713,3271.1,3270.7,1.88525925]
[1737650512769,6.11427,3271.1,3270.8,0.0379121]
[1737650512969,3.05717,3271.0,3270.9,35.0]
[1737650513176,3.05717,3271.0,3270.9,35.03849078]
[1737650513845,3.05717,3271.0,3270.9,0.03849078]
[1737650514269,3.05747,3270.7,3270.4,0.55]
[1737650514473,3.05747,3270.7,3270.5,35.0]
[1737650514680,3.05747,3270.7,3270.5,35.03843899]
[1737650515199,3.05729,3270.9,3270.5,35.03843899]
[1737650515405,3.05729,3270.9,3270.6,0.55]
[1737650515560,3.05729,3270.9,3270.7,0.55]
[1737650515867,3.05735,3270.8,3270.4,0.55]
[1737650516067,3.05735,3270.8,3270.6,0.55]
[1737650516382,3.05735,3270.8,3270.4,0.55]
[1737650517011,3.05735,3270.8,3270.7,35.55]
[1737650518754,5.2760192,3271.1,3270.7,35.55]
[1737650519105,3.05735,3270.9,3270.7,35.55]
[1737650520325,3.05735,3270.8,3270.7,0.55]
[1737650520457,3.05735,3270.8,3270.3,1.545]
[1737650520806,3.05765,3270.5,3270.4,35.0]
[1737650520989,3.05765,3270.5,3270.4,35.55]
[1737650521763,3.05765,3270.5,3270.4,35.0]
[1737650524490,3.05765,3270.5,3269.9,1.5222]
[1737650524491,3.05793,3270.2,3269.9,1.5222]
[1737650525027,3.05793,3270.2,3270.0,35.0]
[1737650525406,3.05793,3270.2,3270.1,0.0384835]
[1737650525781,3.05777,3270.4,3270.2,0.55]
[1737650526132,3.05777,3270.4,3270.3,0.03828761]
[1737650526340,3.05758,3270.6,3270.4,0.55]
[1737650526341,3.05763,3270.5,3270.4,0.55]
[1737650526633,3.05763,3270.5,3270.4,0.03825423]
[1737650527042,3.0578,3270.4,3270.0,0.55]
[1737650527359,3.05763,3270.5,3269.5,3.05855]
[1737650527497,0.60899179,3270.7,3269.6,1.941455]
[1737650527498,3.05806,3270.1,3269.6,1.941455]
[1737650527698,3.05806,3270.1,3269.7,0.55]
[1737650528254,3.05806,3270.1,3269.9,0.55]
[1737650528545,3.05797,3270.2,3269.9,0.55]
[1737650528717,3.05797,3270.2,3270.0,0.03845154]
[1737650528901,3.05782,3270.3,3269.7,3.60836]
[1737650529100,3.05782,3270.3,3269.7,1.4108325]
[1737650529299,3.05798,3270.2,3269.9,0.55]
[1737650529572,2.10979179,3270.7,3269.8,0.03850128]
[1737650529573,3.05819,3269.9,3269.8,0.03850128]
[1737650529703,3.05819,3269.9,3269.2,4.61027]
[1737650530047,3.05785,3270.3,3269.9,0.55]
[1737650530335,3.05774,3270.4,3270.1,0.55]
[1737650531412,3.05784,3270.3,3269.8,1.5515]
[1737650532035,3.05784,3270.3,3269.9,0.55]
[1737650532421,3.05767,3270.5,3269.9,3.60811]
[1737650533243,3.05754,3270.6,3270.1,0.55]
[1737650533535,3.05754,3270.6,3269.8,1.5515]
[1737650533733,3.05751,3270.7,3269.9,3.05819]
[1737650533925,3.05769,3270.5,3270.0,0.55]
[1737650534120,3.05769,3270.5,3269.9,3.05819]
[1737650534121,3.67970892,3270.8,3269.9,0.55]
[1737650534323,3.05639,3271.9,3269.9,0.55]
[1737650534324,1.4921,3271.4,3270.4,1.6024]
[1737650534525,3.05723,3271.0,3270.7,0.55]
[1737650534896,3.05706,3271.2,3270.7,0.55]
[1737650535103,3.05682,3271.4,3270.8,0.55]
[1737650535301,3.05695,3271.3,3270.8,0.55]
[1737650535510,3.05695,3271.3,3270.8,0.910738]
[1737650536637,3.05699,3271.2,3270.8,0.910738]
[1737650536852,3.05699,3271.2,3270.6,3.60751]
[1737650537017,6.11392,3271.3,3270.6,3.60751]
[1737650537220,3.05695,3271.3,3270.6,3.60751]
[1737650537535,3.05696,3271.3,3270.8,0.55]
[1737650539240,3.0567,3271.5,3270.4,4.66011]
[1737650539455,3.05744,3270.8,3270.4,1.6024]
[1737650539957,3.05763,3270.5,3270.1,1.5327]
[1737650540134,3.05748,3270.7,3270.1,4.59064]
[1737650540326,3.05729,3270.9,3270.2,3.05784]
[1737650540553,3.05741,3270.8,3270.3,1.009054]
[1737650540733,3.05752,3270.7,3270.3,1.009054]
[1737650541040,3.05731,3270.9,3270.5,0.55]
[1737650541242,3.05722,3271.0,3270.5,0.55]
[1737650541458,3.05722,3271.0,3270.7,0.55]
[1737650541755,3.05722,3271.0,3270.8,0.03551698]
[1737650541953,3.05722,3271.0,3270.2,3.05789]
[1737650541954,3.362942,3271.0,3270.2,3.05789]
[1737650542254,1.627,3271.9,3270.8,0.55]
[1737650542542,1.627,3271.9,3271.0,0.55]
[1737650542543,3.0567,3271.5,3271.0,0.55]
[1737650542762,3.05666,3271.6,3271.1,0.0351921]
[1737650543046,3.05666,3271.6,3271.0,0.55]
[1737650543047,3.05685,3271.4,3271.2,0.55]
[1737650543258,3.05685,3271.4,3270.9,0.55]
[1737650543409,3.05685,3271.4,3271.3,0.58521928]
[1737650543744,6.11335,3271.6,3271.3,0.58521928]
[1737650543905,3.05666,3271.6,3271.3,0.58521928]
[1737650544106,3.65865767,3271.7,3271.3,0.03521928]
[1737650544313,6.05661,3271.6,3271.1,0.55]
[1737650544555,3.05652,3271.7,3271.3,0.55]
[1737650544724,3.05659,3271.7,3271.4,0.03527131]
[1737650544923,3.0293581,3271.7,3271.4,0.03527131]
[1737650545127,3.05662,3271.6,3271.4,0.03527131]
[1737650545558,3.0567,3271.5,3271.4,0.03527131]
[1737650545714,3.05662,3271.6,3270.9,1.5727]
[1737650546065,3.05704,3271.2,3271.0,0.58523622]
[1737650546561,3.05684,3271.4,3271.0,0.58523622]
[1737650546755,3.05648,3271.8,3271.2,0.55]
[1737650546956,3.05648,3271.8,3271.3,0.03516166]
[1737650547170,3.05652,3271.7,3271.4,0.55]
[1737650547347,3.0566,3271.6,3271.5,0.58511196]
[1737650549022,3.0566,3271.6,3271.5,0.03511196]
[1737650549464,3.05686,3271.4,3271.0,0.55]
[1737650549638,3.05686,3271.4,3271.0,1.083727]
[1737650549836,3.05689,3271.3,3271.0,1.083727]
[1737650550360,6.11373,3271.4,3271.0,0.55]
[1737650550563,3.05686,3271.4,3271.0,0.55]
[1737650550877,3.05706,3271.2,3271.0,0.55]
[1737650551165,3.05716,3271.0,3270.6,1.537]
[1737650551373,3.05739,3270.8,3270.6,1.537]
[1737650551824,4.5403,3271.7,3270.6,1.537]
[1737650552025,1.5473,3271.0,3270.2,2.2558]
[1737650552269,3.0577,3270.5,3270.2,2.2558]
[1737650552567,2.14932999,3271.4,3270.3,3.60776]
[1737650552718,6.11448,3271.0,3270.5,0.55]
[1737650553070,3.05722,3271.0,3270.3,0.55]
[1737650553275,3.05739,3270.8,3270.3,1.136368]
[1737650553976,3.05739,3270.8,3270.3,4.194128]
[1737650554263,3.05726,3270.9,3270.5,0.55]
[1737650554622,3.05726,3270.9,3270.7,0.55]
[1737650555058,3.05722,3271.0,3270.9,0.55]
[1737650555239,3.05716,3271.0,3270.9,0.55]
[1737650555418,3.05709,3271.1,3270.9,0.58532457]
[1737650555626,1.6438,3271.8,3270.9,2.1737]
[1737650555974,3.05674,3271.5,3271.1,0.55]
[1737650556273,3.05679,3271.4,3271.3,0.55]
[1737650556476,3.05656,3271.7,3271.3,0.55]
[1737650556633,3.05679,3271.4,3271.3,0.58507538]
[1737650556829,3.05679,3271.4,3271.3,0.03507538]
[1737650557276,3.05716,3271.0,3270.9,0.55]
[1737650557635,3.05716,3271.0,3270.9,0.58518291]
[1737650557971,3.05716,3271.0,3270.9,0.55]
[1737650558736,3.05716,3271.0,3270.9,0.58507082]
[1737650559079,3.05716,3271.0,3270.9,0.03507082]
[1737650559080,3.668583,3271.0,3270.9,0.03507082]
[1737650559260,5.243583,3271.0,3270.9,0.03507082]
[1737650559462,3.05699,3271.2,3270.6,2.0636]
[1737650559687,3.05683,3271.4,3270.8,3.60733]
[1737650559892,3.05678,3271.5,3270.8,3.60731]
[1737650560211,3.05678,3271.5,3270.6,1.5136]
[1737650560212,3.05656,3271.7,3271.2,0.55]
[1737650560502,3.05637,3271.9,3271.4,0.55]
[1737650560660,3.05652,3271.7,3271.4,0.55]
[1737650560863,3.05652,3271.7,3271.6,0.55]
[1737650561362,3.05652,3271.7,3271.6,0.58495062]
[1737650562210,3.05652,3271.7,3271.6,0.03495062]
[1737650562404,3.05652,3271.7,3271.1,1.492]
[1737650562405,3.05637,3271.9,3271.1,1.492]
[1737650562563,3.0568,3271.4,3271.2,0.58505002]
[1737650562758,3.05688,3271.3,3271.2,0.58505002]
[1737650563010,3.05676,3271.5,3271.2,0.58505002]
[1737650563197,3.05676,3271.5,3271.2,0.79275502]
[1737650563443,3.05655,3271.7,3271.2,0.79275502]
[1737650563595,3.05638,3271.9,3271.2,0.24275502]
[1737650563765,3.05618,3272.1,3271.5,0.55]
[1737650564102,3.05535,3273.0,3271.9,0.55]
[1737650564103,1.6022,3272.6,3271.9,0.55]
[1737650564265,3.05562,3272.7,3272.1,0.55]
[1737650564459,1.6022,3272.9,3272.1,0.55]
[1737650564729,3.05592,3272.4,3272.3,0.55]
[1737650565080,3.05612,3272.2,3271.7,0.55]
[1737650565278,3.05576,3272.6,3271.7,0.55]
[1737650565279,3.05569,3272.6,3271.8,3.05642]
[1737650565623,3.73271937,3274.2,3271.8,3.05642]
[1737650565624,3.05521,3273.1,3272.4,3.05578]
[1737650565826,3.05521,3273.1,3272.7,0.55]
[1737650566124,3.05533,3273.0,3272.7,0.55]
[1737650566326,3.05539,3272.9,3272.8,0.03381273]
[1737650566627,3.05539,3272.9,3272.8,0.58381273]
[1737650566829,3.05589,3272.4,3271.9,1.979442]
[1737650567587,3.05589,3272.4,3272.0,0.55]
[1737650567771,3.05588,3272.4,3272.0,0.55]
[1737650567976,3.0561,3272.2,3272.0,0.55]